bitfinex/quotes_SOLUSD_20250508
["timestamp","ask_amount","ask_price","bid_price","bid_amount"]
[1746709189972,22.62589694,154.69,154.65,11.04102179]
[1746709192076,4.54671825,154.68,154.64,11.04102179]
[1746709192873,6.46579593,154.66,154.64,11.04102179]
[1746709193373,4.54671825,154.65,154.64,11.04102179]
[1746709196985,11.01293228,154.65,154.64,11.04102179]
[1746709198168,11.01293228,154.65,154.63,11.04102179]
[1746709198981,22.62589694,154.69,154.64,11.04102179]
[1746709199195,33.66691873,154.69,154.64,11.04102179]
[1746709199375,11.04102179,154.68,154.62,108.8]
[1746709199687,11.04102179,154.68,154.63,11.04102179]
[1746709199870,4.59780031,154.67,154.63,11.04102179]
[1746709200573,6.46579593,154.66,154.63,11.04102179]
[1746709201071,4.59780031,154.65,154.63,11.04102179]
[1746709201991,6.46579593,154.66,154.63,11.04102179]
[1746709201992,4.59780031,154.64,154.63,11.04102179]
[1746709202687,11.06443248,154.64,154.63,11.04102179]
[1746709202983,11.06443248,154.64,154.58,1.5601]
[1746709203181,11.06443248,154.64,154.6,11.04102179]
[1746709203368,4.59780031,154.63,154.61,11.04102179]
[1746709204269,6.46639268,154.65,154.62,11.04102179]
[1746709204471,6.46639268,154.65,154.64,11.04102179]
[1746709204672,6.46495991,154.68,154.64,11.04102179]
[1746709204867,4.59401577,154.67,154.66,11.04102179]
[1746709208192,11.05939367,154.67,154.66,11.04102179]
[1746709208567,11.05939367,154.67,154.62,118.51067065]
[1746709208772,11.05939367,154.67,154.63,18.64964886]
[1746709209077,11.05939367,154.67,154.64,11.04102179]
[1746709209271,11.05939367,154.67,154.63,18.64964886]
[1746709209272,11.05939367,154.67,154.65,11.04102179]
[1746709209476,6.4653779,154.67,154.66,11.04102179]
[1746709210395,16.15871104,154.72,154.66,11.04102179]
[1746709210588,16.15871104,154.72,154.68,11.04102179]
[1746709210786,22.62199956,154.72,154.69,11.04102179]
[1746709210979,4.58939699,154.71,154.7,11.04102179]
[1746709211879,11.05310327,154.71,154.7,11.04102179]
[1746709213778,26.0,154.68,154.57,19.38]
[1746709214003,6.4653779,154.67,154.62,11.04102179]
[1746709214593,4.58939699,154.66,154.63,11.04102179]
[1746709215408,4.58939699,154.65,154.63,11.04102179]
[1746709215805,6.46663217,154.64,154.62,11.04102179]
[1746709216399,4.58939699,154.63,154.62,11.04102179]
[1746709217801,11.05644736,154.63,154.62,11.04102179]
[1746709218402,11.05644736,154.63,154.61,11.04102179]
[1746709218778,4.58939699,154.62,154.61,11.04102179]
[1746709219210,4.58939699,154.62,154.59,26.0]
[1746709219383,4.58939699,154.62,154.59,37.04102179]
[1746709219583,4.58939699,154.62,154.6,11.04102179]
[1746709219781,11.05728393,154.61,154.6,11.04102179]
[1746709220104,4.58939699,154.61,154.6,11.04102179]
[1746709220307,4.58939699,154.61,154.6,31.33297065]
[1746709220613,6.46495991,154.68,154.63,44.64964886]
[1746709220784,16.15922275,154.72,154.67,11.04102179]
[1746709220985,22.62251127,154.72,154.71,11.04102179]
[1746709221384,6.46328852,154.72,154.71,11.04102179]
[1746709221602,6.46328852,154.72,154.7,11.04102179]
[1746709221787,6.46328852,154.72,154.66,18.64964886]
[1746709222003,16.15721189,154.73,154.69,11.04102179]
[1746709222392,16.15721189,154.73,154.7,11.04102179]
[1746709223211,6.46245314,154.74,154.72,11.04102179]
[1746709223390,6.46245314,154.74,154.73,11.04102179]
[1746709223594,6.46245314,154.74,154.72,11.04102179]
[1746709224012,22.61629597,154.76,154.72,11.04102179]
[1746709225819,6.46161798,154.76,154.75,11.04102179]
[1746709226036,24.27509419,154.79,154.75,11.04102179]
[1746709226037,6.46078304,154.78,154.75,11.04102179]
[1746709226191,6.46078304,154.78,154.72,18.64964886]
[1746709226515,22.61274065,154.78,154.71,50.0]
[1746709226712,33.65376244,154.78,154.73,11.04102179]
[1746709226890,22.61274065,154.78,154.73,11.04102179]
[1746709227096,33.65376244,154.78,154.74,11.04102179]
[1746709227316,22.61274065,154.78,154.74,11.04102179]
[1746709229203,22.61274065,154.78,154.7,18.64964886]
[1746709229510,22.61274065,154.78,154.74,11.04102179]
[1746709231817,22.61274065,154.78,154.75,11.04102179]
[1746709232719,4.50903126,154.77,154.75,11.04102179]
[1746709233712,10.97064924,154.76,154.75,11.04102179]
[1746709234021,10.97064924,154.76,154.74,11.04102179]
[1746709234397,4.50903126,154.75,154.74,11.04102179]
[1746709235623,10.9710668,154.75,154.73,11.04102179]
[1746709236091,6.46203554,154.75,154.73,11.04102179]
[1746709236726,6.46203554,154.75,154.7,18.64964886]
[1746709237033,6.46203554,154.75,154.73,11.04102179]
[1746709238038,6.46120049,154.77,154.74,11.04102179]
[1746709238602,4.49940159,154.76,154.74,11.04102179]
[1746709239329,6.46120049,154.77,154.74,11.04102179]
[1746709239531,6.46120049,154.77,154.75,11.04102179]
[1746709239730,6.46120049,154.77,154.74,11.04102179]
[1746709240830,22.6128749,154.78,154.74,11.04102179]
[1746709241327,4.49689956,154.77,154.74,11.04102179]
[1746709242623,4.49689956,154.76,154.74,11.04102179]
[1746709243234,10.95881011,154.76,154.75,11.04102179]
[1746709243412,4.49689956,154.76,154.75,11.04102179]
[1746709243613,6.46133348,154.77,154.75,11.04102179]
[1746709243832,6.46133348,154.77,154.76,11.04102179]
[1746709244027,6.45994832,154.8,154.76,11.04102179]
[1746709244235,6.45994832,154.8,154.78,11.04102179]
[1746709245028,6.45869663,154.83,154.79,11.04102179]
[1746709245230,6.45869663,154.83,154.8,11.04102179]
[1746709245622,22.60543821,154.83,154.77,18.64964886]
[1746709245823,4.48721513,154.82,154.78,11.04102179]
[1746709246024,15.52823692,154.82,154.75,76.0]
[1746709246243,11.04102179,154.81,154.76,11.04102179]
[1746709246412,15.52823692,154.82,154.77,11.04102179]
[1746709246613,4.48721513,154.82,154.77,11.04102179]
[1746709246813,15.52823692,154.82,154.77,11.04102179]
[1746709247016,22.60543821,154.83,154.77,11.04102179]
[1746709247221,58.28741911,154.86,154.77,11.04102179]
[1746709247222,11.04102179,154.82,154.77,11.04102179]
[1746709247831,11.04102179,154.81,154.76,11.04102179]
[1746709248034,54.89183078,154.85,154.76,11.04102179]
[1746709248342,4.48362645,154.81,154.77,11.04102179]
[1746709248941,4.48362645,154.81,154.79,11.04102179]
[1746709249342,11.04102179,154.83,154.78,11.04102179]
[1746709249343,6.45994832,154.8,154.78,11.04102179]
[1746709249649,22.60981912,154.8,154.77,11.04102179]
[1746709249942,22.60981912,154.8,154.76,11.04102179]
[1746709251136,33.65084091,154.8,154.75,11.04102179]
[1746709251336,22.60981912,154.8,154.76,11.04102179]
[1746709251845,4.48651976,154.79,154.76,11.04102179]
[1746709253231,22.60981912,154.8,154.76,11.04102179]
[1746709255051,4.4876186,154.79,154.76,11.04102179]
[1746709255424,6.46078304,154.78,154.76,11.04102179]
[1746709255930,6.46078304,154.78,154.77,11.04102179]
[1746709257450,16.1498708,154.8,154.77,11.04102179]
[1746709257652,6.45953103,154.81,154.79,11.04102179]
[1746709258141,6.45953103,154.81,154.8,11.04102179]
[1746709259156,10.94487109,154.81,154.8,11.04102179]
[1746709265665,10.94487109,154.81,154.78,18.64964886]
[1746709265843,6.45953103,154.81,154.8,11.04102179]
[1746709266965,16.14681133,154.83,154.8,11.04102179]
[1746709267258,4.50463695,154.81,154.8,11.04102179]
[1746709268168,4.50463695,154.81,154.79,11.04102179]
[1746709268345,4.50463695,154.81,154.78,82.8]
[1746709268666,11.04102179,154.82,154.78,82.8]
[1746709268861,11.04102179,154.81,154.78,82.8]
[1746709269056,16.14681133,154.83,154.78,82.8]
[1746709269057,11.04102179,154.8,154.78,82.8]
[1746709269282,6.46036565,154.79,154.78,82.8]
[1746709269640,10.96578875,154.79,154.78,82.8]
[1746709271372,4.5054231,154.79,154.78,93.84102179]
[1746709271865,10.96578875,154.79,154.78,93.84102179]
[1746709283473,4.5054231,154.79,154.78,93.84102179]
[1746709287682,4.5054231,154.79,154.78,118.95145369]
[1746709287991,4.5054231,154.79,154.78,157.77145369]
[1746709288187,6.45818734,154.85,154.8,18.64964886]
[1746709288387,6.45818734,154.85,154.83,11.04102179]
[1746709288871,6.45818734,154.85,154.84,11.04102179]
[1746709289075,4.51615883,154.85,154.84,11.04102179]
[1746709289292,4.51615883,154.85,154.83,11.04102179]
[1746709289662,4.51615883,154.85,154.84,11.04102179]
[1746709291093,10.97402127,154.85,154.84,11.04102179]
[1746709291300,10.97402127,154.85,154.83,11.04102179]
[1746709292187,4.51615883,154.84,154.8,101.44964886]
[1746709292395,4.51615883,154.84,154.83,11.04102179]
[1746709293491,10.97443834,154.84,154.83,11.04102179]
[1746709295288,4.51615883,154.84,154.83,11.04102179]
[1746709297394,10.97443834,154.84,154.83,11.04102179]
[1746709298603,4.51615883,154.84,154.83,11.04102179]
[1746709300987,4.51615883,154.84,154.83,93.84102179]
[1746709301296,4.51615883,154.84,154.83,118.94936728]
[1746709301468,4.51615883,154.84,154.83,112.49067065]
[1746709301790,6.45369474,154.95,154.9,26.0]
[1746709302176,6.45369474,154.95,154.93,11.04102179]
[1746709302380,6.45369474,154.95,154.9,35.52720386]
[1746709302693,6.45369474,154.95,154.92,11.04102179]
[1746709302893,11.04102179,154.93,154.87,11.04102179]
[1746709303195,11.04102179,154.89,154.84,11.04102179]
[1746709303490,11.04102179,154.9,154.85,11.04102179]
[1746709304395,6.45619471,154.89,154.85,11.04102179]
[1746709305573,11.04102179,154.9,154.85,11.04102179]
[1746709305998,16.13871725,154.91,154.85,11.04102179]
[1746709306199,11.04102179,154.9,154.85,11.04102179]
[1746709306598,11.04102179,154.88,154.83,26.0]
[1746709306786,11.04102179,154.87,154.83,26.0]
[1746709307303,11.04102179,154.88,154.83,37.04102179]
[1746709308009,6.45702847,154.87,154.83,37.04102179]
[1746709309204,6.45702847,154.87,154.84,11.04102179]
[1746709309582,22.59703116,154.89,154.84,11.04102179]
[1746709309892,33.63805295,154.89,154.83,26.0]
[1746709310095,33.63805295,154.89,154.85,11.04102179]
[1746709310281,22.59703116,154.89,154.85,11.04102179]
[1746709311516,33.63805295,154.89,154.85,11.04102179]
[1746709311687,33.63805295,154.89,154.83,26.0]
[1746709311888,33.63805295,154.89,154.85,11.04102179]
[1746709312416,22.59703116,154.89,154.85,11.04102179]
[1746709314814,4.40178471,154.88,154.85,11.04102179]
[1746709315615,6.45744543,154.86,154.85,11.04102179]
[1746709316787,10.85923014,154.86,154.85,11.04102179]
[1746709319230,10.85923014,154.86,154.83,26.0]
[1746709319521,10.85923014,154.86,154.85,11.04102179]
[1746709321407,10.85923014,154.86,154.83,26.0]
[1746709321716,4.40178471,154.85,154.83,26.0]
[1746709321925,4.40178471,154.85,154.84,11.04102179]
[1746709324410,6.45686683,154.88,154.84,11.04102179]
[1746709324411,6.45686683,154.88,154.84,36.14895016]
[1746709324723,6.45686683,154.88,154.87,11.04102179]
[1746709325094,10.87130217,154.88,154.87,11.04102179]
[1746709325520,4.41443534,154.88,154.87,11.04102179]
[1746709326122,6.45567329,154.91,154.87,93.84102179]
[1746709326324,6.45567329,154.91,154.9,11.04102179]
[1746709327409,10.86592244,154.91,154.9,11.04102179]
[1746709329123,10.86592244,154.91,154.89,11.04102179]
[1746709329425,4.41024915,154.9,154.89,11.04102179]
[1746709329914,6.45619471,154.89,154.87,82.8]
[1746709330118,10.86617134,154.9,154.88,11.04102179]
[1746709330314,4.41024915,154.89,154.87,82.8]
[1746709330626,4.41024915,154.89,154.88,11.04102179]
[1746709331930,4.41024915,154.89,154.88,76.75722963]
[1746709332132,4.41024915,154.89,154.88,83.2138412]
[1746709332336,6.45424855,154.94,154.88,72.17281941]
[1746709332516,6.45424855,154.94,154.88,154.97281941]
[1746709332717,6.45424855,154.94,154.93,11.04102179]
[1746709332922,10.86266189,154.94,154.93,11.04102179]
[1746709333321,10.86266189,154.94,154.88,143.93179762]
[1746709333527,10.86266189,154.94,154.92,11.04102179]
[1746709333713,10.86266189,154.94,154.91,11.04102179]
[1746709334026,4.40841334,154.93,154.92,11.04102179]
[1746709335330,10.86294119,154.93,154.92,11.04102179]
[1746709335535,4.40841334,154.93,154.92,11.04102179]
[1746709336423,10.86294119,154.93,154.92,11.04102179]
[1746709343324,4.40841334,154.93,154.92,11.04102179]
[1746709343647,4.40841334,154.93,154.92,21.06655898]
[1746709343946,4.40841334,154.93,154.92,11.04102179]
[1746709344380,10.86294119,154.93,154.92,11.04102179]
[1746709345442,4.40841334,154.93,154.92,11.04102179]
[1746709346347,4.40841334,154.93,154.9,38.82]
[1746709346521,4.40841334,154.93,154.92,11.04102179]
[1746709348639,6.45411414,154.94,154.92,11.04102179]
[1746709349622,6.45286184,154.97,154.92,11.04102179]
[1746709350244,22.58501645,154.97,154.92,11.04102179]
[1746709350444,4.40236358,154.96,154.92,11.04102179]
[1746709350655,4.40236358,154.96,154.93,11.04102179]
[1746709351232,4.40236358,154.95,154.93,11.04102179]
[1746709351426,6.45411126,154.94,154.93,11.04102179]
[1746709351648,6.45411126,154.94,154.92,11.04102179]
[1746709352321,6.45411126,154.94,154.93,11.04102179]
[1746709352736,10.85892605,154.94,154.93,11.04102179]
[1746709354960,6.45411126,154.94,154.89,11.04102179]
[1746709355162,6.45411126,154.94,154.93,11.04102179]
[1746709355646,10.8624009,154.94,154.93,11.04102179]
[1746709356442,4.40828964,154.94,154.93,11.04102179]
[1746709357755,4.40828964,154.94,154.93,49.86102179]
[1746709359261,4.40828964,154.94,154.93,68.51067065]
[1746709359946,4.40828964,154.94,154.93,49.86102179]
[1746709360259,4.40828964,154.94,154.93,11.04102179]
[1746709361969,6.4516129,155.0,154.94,44.64964886]
[1746709362138,6.4516129,155.0,154.99,11.04102179]
[1746709362949,6.45078054,155.02,154.99,11.04102179]
[1746709363246,6.45078054,155.02,155.01,11.04102179]
[1746709363447,6.0002,155.07,155.01,11.04102179]
[1746709363644,4.41257448,155.02,155.01,82.8]
[1746709363843,4.41257448,155.02,155.01,93.84102179]
[1746709364152,9.94577757,155.09,155.01,162.49067065]
[1746709364354,6.44828475,155.08,155.05,11.04102179]
[1746709364747,6.44828475,155.08,155.06,11.04102179]
[1746709365255,22.56899664,155.08,155.05,11.04102179]
[1746709365633,22.56899664,155.08,155.01,142.82553719]
[1746709365829,22.56899664,155.08,155.05,11.04102179]
[1746709366234,22.56899664,155.08,155.01,142.82553719]
[1746709366545,16.12071189,155.08,155.05,11.04102179]
[1746709367150,16.12071189,155.08,155.06,11.04102179]
[1746709367647,16.12071189,155.08,155.05,11.04102179]
[1746709368050,16.12071189,155.08,155.06,11.04102179]
[1746709368247,16.12071189,155.08,155.05,11.04102179]
[1746709368445,16.12071189,155.08,155.01,138.86655898]
[1746709368669,16.12071189,155.08,155.05,11.04102179]
[1746709368843,11.04102179,155.07,155.01,78.84102179]
[1746709369173,11.04102179,155.06,155.01,89.88204358]
[1746709369466,11.04102179,155.06,155.01,78.84102179]
[1746709369681,11.04102179,155.06,155.01,89.88204358]
[1746709369847,11.04102179,155.06,155.02,11.04102179]
[1746709370445,6.4495324,155.05,155.02,11.04102179]
[1746709370738,22.57336342,155.05,155.02,11.04102179]
[1746709370981,22.57336342,155.05,155.01,190.26295079]
[1746709371150,22.57336342,155.05,155.02,11.04102179]
[1746709371981,11.04102179,155.04,155.01,111.421929]
[1746709372469,33.61438521,155.05,155.01,111.421929]
[1746709373357,22.57336342,155.05,155.01,111.421929]
[1746709373559,33.61438521,155.05,155.01,111.421929]
[1746709373872,11.04102179,155.04,155.01,111.421929]
[1746709374562,6.45036444,155.03,155.01,111.421929]
[1746709375652,6.45036444,155.03,155.01,122.46295079]
[1746709376674,22.5748194,155.04,155.01,122.46295079]
[1746709376857,22.5748194,155.04,155.02,11.04102179]
[1746709377052,22.5748194,155.04,155.01,111.421929]
[1746709377255,22.5748194,155.04,155.03,11.04102179]
[1746709377456,22.5748194,155.04,155.02,11.04102179]
[1746709378281,16.124871,155.04,155.01,111.421929]
[1746709378455,11.04102179,155.03,155.01,111.421929]
[1746709378875,16.124871,155.04,155.01,111.421929]
[1746709379172,11.04102179,155.03,155.01,111.421929]
[1746709379356,27.16589279,155.04,155.01,111.421929]
[1746709379678,4.31191508,155.03,155.01,111.421929]
[1746709380773,33.61584119,155.04,155.01,111.421929]
[1746709380774,4.31191508,155.02,155.01,111.421929]
[1746709381258,4.31191508,155.03,155.01,111.421929]
[1746709381458,15.35293687,155.03,155.01,111.421929]
[1746709381659,6.45078054,155.02,155.01,111.421929]
[1746709381861,10.76269562,155.02,155.01,111.421929]
[1746709383775,21.80371741,155.02,155.01,111.421929]
[1746709384280,25.76036421,155.02,155.01,111.421929]
[1746709384474,10.76269562,155.02,155.01,111.421929]
[1746709384676,21.44844913,155.02,155.01,111.421929]
[1746709385476,25.76425945,155.02,155.01,111.421929]
[1746709386086,25.76165388,155.02,155.01,111.421929]
[1746709386287,10.76659086,155.02,155.01,111.421929]
[1746709386461,25.76165388,155.02,155.01,111.421929]
[1746709386860,10.76659086,155.02,155.01,111.421929]
[1746709388174,25.76165388,155.02,155.01,111.421929]
[1746709389196,10.8916435,155.02,155.01,111.421929]
[1746709389400,25.88670652,155.02,155.01,111.421929]
[1746709389566,10.8916435,155.02,155.01,111.421929]
[1746709390667,25.88670652,155.02,155.01,111.421929]
[1746709391595,10.8916435,155.02,155.01,111.421929]
[1746709393270,25.88670652,155.02,155.01,111.421929]
[1746709394581,10.8916435,155.02,155.01,111.421929]
[1746709397179,25.88670652,155.02,155.01,111.421929]
[1746709403698,10.8916435,155.02,155.01,111.421929]
[1746709403898,25.88670652,155.02,155.01,111.421929]
[1746709408601,25.76165388,155.02,155.01,111.421929]
[1746709409206,25.89116555,155.02,155.01,111.421929]
[1746709410290,21.57535523,155.02,155.01,111.421929]
[1746709411108,25.91935244,155.02,155.01,111.421929]
[1746709411407,44.5690013,155.02,155.01,111.421929]
[1746709412107,25.91935244,155.02,155.01,111.421929]
[1746709412291,25.91935244,155.02,155.01,106.57980943]
[1746709413698,10.92428942,155.02,155.01,106.57980943]
[1746709414990,25.91935244,155.02,155.01,106.57980943]
[1746709416325,10.92428942,155.02,155.01,106.57980943]
[1746709420504,25.91935244,155.02,155.01,106.57980943]
[1746709424903,10.92428942,155.02,155.01,106.57980943]
[1746709426899,25.91935244,155.02,155.01,106.57980943]
[1746709428615,25.78984077,155.02,155.01,106.57980943]
[1746709429199,25.92846512,155.02,155.01,101.737778]
[1746709429403,44.57811398,155.02,155.01,101.737778]
[1746709439927,44.57811398,155.02,155.01,96.89556466]
[1746709441211,40.23411677,155.02,155.01,96.89556466]
[1746709444116,6.4516129,155.0,154.93,1.6118]
[1746709444323,14.99506302,154.96,154.93,1.6118]
[1746709445833,6.45369474,154.95,154.93,1.6118]
[1746709446035,10.83286699,154.95,154.93,1.6118]
[1746709446539,10.83286699,154.95,154.93,16.60686302]
[1746709446907,4.37917225,154.94,154.93,16.60686302]
[1746709447935,10.83328351,154.94,154.93,16.60686302]
[1746709448835,4.37917225,154.94,154.93,16.60686302]
[1746709449213,0.13440163,154.94,154.93,16.60686302]
[1746709450927,6.58851289,154.94,154.93,16.60686302]
[1746709452015,10.96596643,154.94,154.93,16.60686302]
[1746709452217,4.51185517,154.94,154.93,16.60686302]
[1746709452421,4.51185517,154.94,154.93,49.06139087]
[1746709452635,4.51185517,154.94,154.93,58.44864973]
[1746709453017,0.13440163,154.94,154.93,58.44864973]
[1746709453834,0.13440163,154.94,154.93,137.28967152]
[1746709454343,0.13440163,154.94,154.93,130.83514367]
[1746709454645,6.58851289,154.94,154.93,121.44788481]
[1746709455356,6.58851289,154.94,154.93,80.45282179]
[1746709455530,6.58851289,154.94,154.93,95.44788481]
[1746709455729,10.97142406,154.94,154.93,95.44788481]
[1746709455925,4.5173128,154.94,154.93,95.44788481]
[1746709456615,4.5173128,154.94,154.93,111.28967152]
[1746709456812,0.13440163,154.94,154.93,111.28967152]
[1746709457342,0.13440163,154.94,154.93,137.28967152]
[1746709459528,0.13440163,154.94,154.93,122.2946085]
[1746709459733,0.13440163,154.94,154.93,137.28967152]
[1746709460452,0.13440163,154.94,154.93,205.93932038]
[1746709462542,0.13440163,154.94,154.93,244.75932038]
[1746709468353,0.13440163,154.94,154.93,115.84008065]
[1746709468656,16.12951166,155.0,154.95,26.0]
[1746709468957,6.45202916,154.99,154.98,14.99506302]
[1746709469124,6.57906715,154.99,154.98,14.99506302]
[1746709470255,10.97253418,154.99,154.98,14.99506302]
[1746709476226,10.97253418,154.99,154.95,6.00514367]
[1746709476430,10.97253418,154.99,154.97,14.99506302]
[1746709476949,4.39346703,154.98,154.97,14.99506302]
[1746709477656,10.8459125,154.98,154.97,14.99506302]
[1746709478553,10.8459125,154.98,154.93,82.00514367]
[1746709479056,10.8459125,154.98,154.97,14.99506302]
[1746709480657,10.8459125,154.98,154.96,14.99506302]
[1746709481259,10.84632887,154.97,154.96,14.99506302]
[1746709489161,10.97349838,154.97,154.96,14.99506302]
[1746709489537,10.97349838,154.97,154.93,6.00514367]
[1746709489864,27.10565299,154.97,154.95,14.99506302]
[1746709490163,4.39346703,154.96,154.95,14.99506302]
[1746709490867,10.84674529,154.96,154.95,14.99506302]
[1746709491241,4.39346703,154.96,154.95,14.99506302]
[1746709493365,4.40720382,154.96,154.95,14.99506302]
[1746709494268,0.12290065,154.98,154.97,26.0]
[1746709494518,0.12290065,154.98,154.97,47.00020669]
[1746709495157,0.12290065,154.98,154.97,80.64491857]
[1746709495466,0.12290065,154.98,154.97,87.09778041]
[1746709495669,0.12290065,154.98,154.97,80.64491857]
[1746709497458,0.12290065,154.98,154.97,87.09778041]
[1746709497974,0.13044323,154.99,154.98,68.64964886]
[1746709498173,0.13044323,154.99,154.98,98.6397749]
[1746709498878,0.13044323,154.99,154.98,104.64491857]
[1746709499573,0.13044323,154.99,154.98,89.64985555]
[1746709499768,0.13044323,154.99,154.98,21.00020669]
[1746709499972,0.13044323,154.99,154.98,47.00020669]
[1746709501881,0.13044323,154.99,154.98,61.99526971]
[1746709502178,0.13044323,154.99,154.98,149.84736404]
[1746709502377,0.13044323,154.99,154.98,158.5566542]
[1746709503273,0.13044323,154.99,154.98,113.35420873]
[1746709503479,0.13044323,154.99,154.98,47.00020669]
[1746709503772,6.58247239,154.99,154.98,40.99506302]
[1746709503976,8.16097239,154.99,154.94,6.00514367]
[1746709504366,8.16097239,154.99,154.93,40.99506302]
[1746709504367,14.99506302,154.98,154.93,40.99506302]
[1746709504571,14.99506302,154.96,154.88,93.63199734]
[1746709504750,14.99506302,154.96,154.91,14.99506302]
[1746709504950,14.99506302,154.96,154.92,14.99506302]
[1746709505362,6.45369474,154.95,154.92,14.99506302]
[1746709506258,22.58793159,154.95,154.91,14.99506302]
[1746709506458,4.32281109,154.94,154.91,40.99506302]
[1746709506757,4.32281109,154.94,154.91,26.0]
[1746709507157,4.32281109,154.93,154.87,6.00514367]
[1746709507388,20.97237411,154.93,154.87,6.00514367]
[1746709507685,6.45494448,154.92,154.88,40.99506302]
[1746709507858,6.45494448,154.92,154.91,14.99506302]
[1746709508059,6.45494448,154.92,154.9,14.99506302]
[1746709509184,4.36695379,154.91,154.9,14.99506302]
[1746709509691,10.82231496,154.91,154.88,26.0]
[1746709509894,10.82231496,154.91,154.89,14.99506302]
[1746709510071,10.82231496,154.91,154.9,14.99506302]
[1746709510273,22.59376411,154.91,154.86,6.00514367]
[1746709510455,22.59376411,154.91,154.88,26.0]
[1746709510659,43.61652713,154.91,154.86,40.99506302]
[1746709510879,28.62146411,154.91,154.87,14.99506302]
[1746709511274,4.35935236,154.9,154.87,14.99506302]
[1746709511578,6.45619471,154.89,154.87,14.99506302]
[1746709512689,6.45619471,154.89,154.85,26.0]
[1746709512883,6.45619471,154.89,154.86,14.99506302]
[1746709513401,6.45577792,154.9,154.86,14.99506302]
[1746709513898,4.34837773,154.89,154.87,14.99506302]
[1746709514066,4.34837773,154.89,154.86,14.99506302]
[1746709514384,4.34837773,154.89,154.87,14.99506302]
[1746709514578,4.34837773,154.89,154.85,26.0]
[1746709514788,22.59522272,154.9,154.86,14.99506302]
[1746709515076,22.59522272,154.9,154.87,14.99506302]
[1746709516569,22.59522272,154.9,154.85,26.0]
[1746709516885,19.33352465,154.89,154.85,14.99506302]
[1746709517267,4.33846163,154.89,154.85,14.99506302]
[1746709517487,4.33846163,154.89,154.86,14.99506302]
[1746709517784,22.59522272,154.9,154.86,14.99506302]
[1746709518166,16.56396302,154.89,154.85,14.99506302]
[1746709518461,1.5689,154.89,154.85,14.99506302]
[1746709518761,6.45577792,154.9,154.87,14.99506302]
[1746709519371,6.45577792,154.9,154.86,14.99506302]
[1746709520085,6.45577792,154.9,154.87,14.99506302]
[1746709520669,6.45577792,154.9,154.88,14.99506302]
[1746709522401,6.45577792,154.9,154.86,26.0]
[1746709522574,6.45577792,154.9,154.88,14.99506302]
[1746709523775,32.76146083,154.93,154.85,26.0]
[1746709523776,6.45494448,154.92,154.89,14.99506302]
[1746709523961,6.45494448,154.92,154.91,14.99506302]
[1746709525387,6.45494448,154.92,154.89,26.0]
[1746709525689,21.4500075,154.92,154.84,26.0]
[1746709525985,14.99506302,154.91,154.86,14.99506302]
[1746709526291,14.99506302,154.91,154.84,26.0]
[1746709526292,22.59230569,154.92,154.89,14.99506302]
[1746709527403,37.58736871,154.92,154.87,14.99506302]
[1746709528099,22.59230569,154.92,154.87,14.99506302]
[1746709528270,22.59230569,154.92,154.84,32.00514367]
[1746709528577,22.59230569,154.92,154.88,14.99506302]
[1746709528781,14.99506302,154.91,154.86,14.99506302]
[1746709529180,4.34576854,154.9,154.86,14.99506302]
[1746709529484,4.34576854,154.9,154.87,14.99506302]
[1746709530394,6.45619471,154.89,154.87,14.99506302]
[1746709531298,6.45619471,154.89,154.86,14.99506302]
[1746709532096,6.45619471,154.89,154.87,14.99506302]
[1746709532472,22.59480213,154.91,154.87,14.99506302]
[1746709533998,22.59480213,154.91,154.85,26.0]
[1746709534200,22.59480213,154.91,154.88,14.99506302]
[1746709534417,6.45619471,154.89,154.88,14.99506302]
[1746709537293,16.13944096,154.91,154.88,14.99506302]
[1746709539299,6.45494448,154.92,154.9,14.99506302]
[1746709539510,6.45494448,154.92,154.91,14.99506302]
[1746709540296,6.45494448,154.92,154.9,14.99506302]
[1746709541890,22.59230569,154.92,154.84,50.0]
[1746709542089,22.59230569,154.92,154.87,26.0]
[1746709542416,22.59230569,154.92,154.89,14.99506302]
[1746709542783,4.33138715,154.91,154.9,14.99506302]
[1746709543705,4.33138715,154.91,154.9,40.99506302]
[1746709543911,6.45327826,154.96,154.9,40.99506302]
[1746709544084,6.45327826,154.96,154.93,14.99506302]
[1746709544416,22.58647392,154.96,154.92,14.99506302]
[1746709544786,37.58153694,154.96,154.91,40.99506302]
[1746709545002,4.34667441,154.95,154.91,40.99506302]
[1746709545203,4.34667441,154.95,154.91,14.99506302]
[1746709545410,6.45411126,154.94,154.91,14.99506302]
[1746709545782,4.34667441,154.93,154.91,14.99506302]
[1746709546510,6.45494448,154.92,154.91,14.99506302]
[1746709546711,10.80161889,154.92,154.91,14.99506302]
[1746709547389,10.80161889,154.92,154.9,26.0]
[1746709547588,6.45494448,154.92,154.9,40.99506302]
[1746709547890,6.45494448,154.92,154.91,14.99506302]
[1746709548815,16.13542461,154.94,154.91,14.99506302]
[1746709549003,14.99506302,154.93,154.85,1.615]
[1746709549189,16.64066302,154.91,154.82,50.0]
[1746709549539,16.64066302,154.91,154.86,14.99506302]
[1746709550021,1.6456,154.91,154.88,14.99506302]